bitfinex-derivatives/quotes_ETHF0:USTF0_20251220
["timestamp","ask_amount","ask_price","bid_price","bid_amount"]
[1766243900398,4.42230399,2978.0,2977.1,2.67472493]
[1766243900695,3.359,2977.9,2977.3,2.67472493]
[1766243901192,3.359,2977.9,2977.0,3.35903439]
[1766243903195,3.359,2977.9,2977.0,6.03374844]
[1766243903697,3.359,2977.9,2977.0,3.35903439]
[1766243930812,2.67440805,2977.1,2975.9,1.02721538]
[1766243931017,3.359,2977.0,2975.9,1.02715658]
[1766243931414,8.397,2977.3,2976.0,6.03340805]
[1766243931610,2.84238805,2977.9,2976.3,2.67440805]
[1766243931813,0.00503439,2977.4,2976.8,0.00503439]
[1766243932011,3.359,2977.3,2976.8,0.00503439]
[1766243932211,0.00503439,2977.4,2976.9,2.67440805]
[1766243933317,0.00503439,2977.4,2976.3,0.00415885]
[1766243933508,8.398,2977.3,2976.3,0.00415885]
[1766243933714,7.58640805,2977.2,2976.3,0.00415885]
[1766243934311,4.912,2977.2,2976.3,0.00415885]
[1766243934821,4.912,2977.2,2976.5,0.00503439]
[1766243935406,0.00503439,2977.4,2976.5,0.00503439]
[1766243935612,3.374,2977.3,2976.5,0.00503439]
[1766243935812,0.00503439,2977.4,2976.6,2.67440805]
[1766243936010,3.36403439,2977.4,2976.7,3.359]
[1766243937508,3.36403439,2977.4,2976.9,2.67440805]
[1766243937712,8.40106026,2977.9,2976.9,2.67440805]
[1766243937713,3.359,2977.7,2976.9,2.67440805]
[1766243937914,0.00306026,2977.9,2977.2,2.67440805]
[1766243938118,3.359,2977.8,2977.2,2.67440805]
[1766243938420,3.359,2977.8,2977.0,3.359]
[1766243938620,0.00503439,2977.7,2977.0,3.359]
[1766243940821,0.00503439,2977.7,2976.7,2.67440805]
[1766243941122,0.00503439,2977.7,2976.9,3.359]
[1766243941323,3.36403439,2977.7,2977.0,6.03340805]
[1766243943218,0.16802,2977.1,2975.6,0.90615829]
[1766243943417,0.16802,2977.1,2974.1,6.39]
[1766243943418,0.16817,2974.4,2968.4,0.16851]
[1766243943625,1.20339503,2972.3,2969.6,2.67440805]
[1766243943827,1.14125979,2972.2,2969.8,3.66072693]
[1766243944013,2.67440805,2972.0,2970.0,2.67440805]
[1766243944221,1.14125979,2971.9,2970.1,2.67440805]
[1766243944413,2.67440805,2972.8,2970.5,2.67440805]
[1766243944414,3.359,2971.8,2970.5,2.67440805]
[1766243944617,0.00504363,2971.3,2970.7,0.00504363]
[1766243944820,3.359,2971.2,2970.7,0.00504363]
[1766243945118,3.359,2971.2,2970.8,0.02451979]
[1766243945713,3.359,2971.2,2970.7,0.00504363]
[1766243945918,3.359,2971.2,2970.0,0.00264089]
[1766243946117,3.359,2971.2,2970.1,0.02451979]
[1766243946522,4.45408498,2971.0,2970.1,0.02451979]
[1766243946722,4.52485719,2970.9,2970.1,0.02451979]
[1766243946926,4.52485719,2970.9,2970.2,0.00334345]
[1766243947120,12.277,2970.8,2970.2,0.00334345]
[1766243947426,4.51673177,2970.7,2970.2,0.00334345]
[1766243947817,4.45408498,2971.0,2970.2,0.00334345]
[1766243948019,27.97077004,2970.9,2970.2,0.00334345]
[1766243948326,27.96977004,2970.8,2970.2,0.00334345]
[1766243948526,19.56177004,2970.7,2970.2,0.00334345]
[1766243948723,0.00504363,2971.3,2970.2,0.00334345]
[1766243948928,27.96465644,2971.2,2970.2,0.02786324]
[1766243949126,1.15265644,2971.1,2970.2,0.02786324]
[1766243949327,27.96565644,2971.0,2970.0,4.089e-05]
[1766243949526,1.15265644,2970.9,2970.0,4.089e-05]
[1766243949730,27.96265644,2970.8,2970.0,4.089e-05]
[1766243949920,1.15265644,2970.7,2970.0,4.089e-05]
[1766243950216,3.362,2970.6,2970.0,4.089e-05]
[1766243950420,1.15265644,2970.5,2970.0,4.089e-05]
[1766243950627,1.15265644,2970.4,2970.0,4.089e-05]
[1766243950826,16.19465644,2970.3,2970.0,4.089e-05]
[1766243951127,3.363,2970.2,2970.0,4.089e-05]
[1766243951326,1.14765263,2970.4,2970.0,4.089e-05]
[1766243951524,4.50930673,2970.3,2970.0,4.089e-05]
[1766243951721,8.408,2970.8,2970.0,4.089e-05]
[1766243951722,4.50930673,2970.2,2970.0,4.089e-05]
[1766243951924,1.19291065,2970.9,2970.0,4.089e-05]
[1766243952232,6.83930333,2970.8,2970.0,4.089e-05]
[1766243952426,4.50930333,2970.7,2970.0,4.089e-05]
[1766243952619,1.14630333,2970.6,2970.0,4.089e-05]
[1766243952823,4.51030333,2970.5,2970.0,4.089e-05]
[1766243953026,12.109,2970.9,2970.0,4.089e-05]
[1766243953027,3.364,2970.6,2970.0,4.089e-05]
[1766243953224,1.14508161,2970.5,2970.0,4.089e-05]
[1766243953426,1.19795428,2971.3,2970.0,4.089e-05]
[1766243953627,20.68917421,2971.2,2970.0,4.089e-05]
[1766243953833,1.14417421,2971.1,2970.0,4.089e-05]
[1766243954029,1.14417421,2971.0,2970.0,4.089e-05]
[1766243954223,4.50817421,2970.9,2970.0,4.089e-05]
[1766243954426,1.14417421,2970.8,2970.0,4.089e-05]
[1766243954634,1.14417421,2970.7,2970.0,4.089e-05]
[1766243954834,1.19291065,2971.1,2970.0,4.089e-05]
[1766243954835,4.50817421,2970.6,2970.0,4.089e-05]
[1766243955036,10.73617421,2970.5,2970.0,4.089e-05]
[1766243955225,1.14417421,2970.4,2970.0,4.089e-05]
[1766243955532,1.14417421,2970.3,2970.0,4.089e-05]
[1766243955837,3.364,2970.2,2970.0,4.089e-05]
[1766243956828,1.19291065,2971.0,2970.0,4.089e-05]
[1766243957031,16.12703159,2970.9,2970.0,4.089e-05]
[1766243957334,2.33503159,2970.8,2970.0,4.089e-05]
[1766243957533,1.14212094,2970.7,2970.0,4.089e-05]
[1766243957727,1.19291065,2970.8,2970.0,4.089e-05]
[1766243957728,1.14212094,2970.6,2970.0,4.089e-05]
[1766243957938,4.50712094,2970.5,2970.0,4.089e-05]
[1766243958232,13.56412094,2970.4,2970.0,4.089e-05]
[1766243958429,4.50712094,2970.3,2970.0,4.089e-05]
[1766243958629,1.14212094,2970.2,2970.0,4.089e-05]
[1766243959136,1.19291065,2970.8,2970.1,0.2628912]
[1766243959338,3.37004363,2971.3,2970.0,3.36504089]
[1766243961850,0.00504363,2971.3,2970.0,3.36504089]
[1766243962546,3.366,2971.2,2970.0,3.36504089]
[1766243962748,3.37104363,2971.3,2970.0,3.36504089]
[1766243963540,0.00504363,2971.3,2970.0,3.36504089]
[1766243963747,3.366,2971.2,2970.0,3.36504089]
[1766243964546,0.00504363,2971.3,2970.0,3.36504089]
[1766243965749,3.37104363,2971.3,2970.0,3.36504089]
[1766243966055,0.00504363,2971.3,2970.0,3.36504089]
[1766243966544,3.366,2971.2,2970.0,3.36504089]
[1766243967356,4.55891065,2971.2,2970.0,3.36504089]
[1766243968449,1.19291065,2971.0,2970.0,3.36504089]
[1766243968653,3.9291174,2970.6,2970.0,2.89563089]
[1766243968854,3.9291174,2970.2,2968.8,3.366]
[1766243969159,0.00504363,2969.8,2968.9,3.366]
[1766243969348,0.00504363,2969.8,2969.0,3.366]
[1766243969957,0.00751583,2969.8,2969.0,3.36843404]
[1766243970153,3.366,2969.7,2969.0,3.36843404]
[1766243971157,1.06566983,2969.6,2969.0,0.00243404]
[1766243971358,1.06566983,2969.5,2969.0,0.00243404]
[1766243971558,1.06566983,2969.4,2969.0,0.00243404]
[1766243971754,1.06566983,2969.3,2969.0,0.00243404]
[1766243971958,1.06566983,2969.2,2969.0,0.00243404]
[1766243972269,1.06566983,2969.1,2969.0,0.00243404]
[1766243972869,1.19291065,2969.5,2969.0,0.00243404]
[1766243973352,3.367,2969.5,2968.8,3.367]
[1766243973553,1.80112322,2969.0,2968.8,3.367]
[1766243973754,1.20074888,2969.2,2968.8,3.367]
[1766243974360,1.80112322,2969.6,2968.8,3.37098207]
[1766243974558,3.367,2969.6,2968.8,3.37098207]
[1766243975662,3.367,2969.5,2968.8,3.37098207]
[1766243976159,1.80863905,2969.8,2968.8,3.37098207]
[1766243976369,0.00751583,2969.8,2968.8,3.37098207]
[1766243977362,1.80112322,2970.1,2968.8,3.37098207]
[1766243977569,3.367,2970.1,2968.8,7.30009947]
[1766243977770,3.367,2970.1,2968.8,3.37098207]
[1766243978367,0.00505238,2969.7,2969.2,0.00505238]
[1766243980968,0.0040194,2970.1,2969.2,0.00505238]
[1766243981464,3.367,2970.0,2969.2,0.00505238]
[1766243981768,3.37205238,2969.9,2969.2,0.00505238]
[1766243982368,3.9291174,2969.3,2968.0,0.649]
[1766243982669,1.80112322,2969.2,2968.0,0.649]
[1766243982964,11.786,2969.1,2968.0,0.649]
[1766243983369,3.9291174,2969.3,2968.0,0.65214392]
[1766243983571,13.311,2969.2,2968.0,0.65214392]
[1766243984171,3.9291174,2969.3,2968.0,0.65214392]
[1766243984376,24.482,2969.2,2968.0,0.65214392]
[1766243984879,26.802,2969.1,2968.0,0.65214392]
[1766243985176,27.76594588,2969.0,2968.0,0.65214392]
[1766243985378,0.96294588,2968.9,2968.0,0.65214392]
[1766243985568,0.96294588,2968.8,2968.0,0.65214392]
[1766243985768,19.34594588,2968.7,2968.0,0.65214392]
[1766243985972,0.96294588,2968.6,2968.0,0.65214392]
[1766243986171,3.9291174,2969.3,2968.0,0.65214392]
[1766243986370,1.80112322,2969.5,2968.0,0.65214392]
[1766243986371,0.9624367,2969.2,2968.1,3.368]
[1766243986680,4.629,2969.1,2968.0,0.65214392]
[1766243986974,3.368,2969.0,2968.0,0.65214392]
[1766243987770,3.9291174,2969.5,2968.0,0.65214392]
[1766243987975,13.726,2969.4,2968.0,0.65214392]
[1766243988274,26.808,2969.3,2968.0,0.65214392]
[1766243988868,26.227,2969.2,2968.0,0.65214392]
[1766243989177,26.805,2969.1,2968.0,0.65214392]
[1766243989474,18.382,2969.0,2968.0,0.65214392]
[1766243989872,3.9291174,2969.1,2968.0,0.65214392]
[1766243990068,3.9291174,2969.7,2968.0,0.65214392]
[1766243990372,12.964,2969.6,2968.0,0.65214392]
[1766243990574,24.753,2969.6,2968.0,0.65214392]
[1766243992076,0.00505238,2969.9,2968.0,0.65214392]
[1766243992472,13.663,2969.8,2968.0,0.65214392]
[1766243992872,0.00505238,2969.9,2968.0,0.65214392]
[1766243993073,11.789,2969.8,2968.0,0.65214392]
[1766243993274,0.00505238,2969.9,2968.0,0.65214392]
[1766243993475,13.047,2969.8,2968.0,0.65214392]
[1766243994573,0.00505238,2969.9,2968.0,0.65214392]
[1766243994773,13.073,2969.8,2968.0,4.58573579]
[1766243995369,0.00505238,2969.9,2968.0,4.58573579]
[1766243995568,3.368,2969.8,2968.0,4.58573579]
[1766243995768,0.00505238,2969.9,2968.0,4.58573579]
[1766243996175,3.368,2969.8,2968.0,4.58573579]
[1766243996377,3.839,2969.7,2968.0,4.58573579]
[1766243997075,0.00505238,2969.9,2968.5,3.93359187]
[1766243997279,3.37305238,2969.9,2968.6,3.368]
[1766243997880,3.37305238,2969.9,2968.1,3.53653]
[1766243998182,13.82637077,2969.8,2968.1,3.368]
[1766243998383,0.93737077,2969.7,2968.1,3.368]
[1766243998582,0.93737077,2969.6,2968.1,3.368]
[1766243998886,4.30537077,2969.5,2968.1,3.368]
[1766243999077,0.93737077,2969.4,2968.1,3.368]
[1766243999278,3.368,2969.3,2968.1,3.368]
[1766243999477,3.368,2969.2,2968.1,3.368]
[1766244000177,3.368,2969.2,2968.0,0.65214392]
[1766244000477,3.368,2969.2,2968.1,3.368]
[1766244001188,3.93359187,2969.7,2968.1,3.368]
[1766244001475,0.00505238,2969.9,2968.2,7.59774723]
[1766244001782,0.00505238,2969.9,2968.4,0.16851]
[1766244001983,0.00505238,2969.9,2968.5,11.789]
[1766244002184,0.00505238,2969.9,2968.5,15.36001667]
[1766244003573,0.0040194,2970.1,2968.9,3.93359187]
[1766244003778,0.0040194,2970.1,2969.0,10.799]
[1766244004583,0.00505238,2969.8,2969.3,0.00505238]
[1766244004875,0.00505238,2969.8,2969.4,3.368]
[1766244005084,0.00505238,2969.8,2969.5,3.368]
[1766244005987,0.0040194,2970.1,2969.5,3.368]
[1766244006981,0.00907178,2970.1,2969.5,3.368]
[1766244007180,3.368,2971.1,2969.5,3.368]
[1766244007581,3.93359187,2971.8,2969.5,3.368]
[1766244007788,13.093,2971.7,2969.5,3.368]
[1766244008086,0.00505238,2970.9,2969.5,3.368]
[1766244008985,0.00505238,2970.9,2969.7,3.93359187]
[1766244009288,0.00505238,2970.9,2969.8,3.368]
[1766244009486,0.00505238,2970.9,2969.9,4.922]
[1766244010286,0.00359327,2971.7,2969.9,4.922]
[1766244010587,3.37159327,2971.7,2970.1,3.93359187]
[1766244010789,3.37159327,2971.7,2970.2,3.368]
[1766244010993,0.00359327,2971.7,2970.2,3.368]
[1766244011293,0.00505238,2971.2,2970.2,3.368]
[1766244012788,0.00359327,2971.7,2970.8,3.93359187]
[1766244012997,0.00359327,2971.7,2970.9,6.455]
[1766244013194,0.00359327,2971.7,2971.0,3.367]
[1766244013688,0.00505238,2971.6,2971.1,0.00505238]
[1766244014296,0.04421,2972.2,2971.1,0.00505238]
[1766244015298,0.00334781,2971.9,2971.1,0.00505238]
[1766244015491,0.00334781,2971.9,2971.2,3.367]
[1766244020498,4.781e-05,2971.9,2971.2,3.367]
[1766244030211,4.781e-05,2971.9,2971.3,8.913]
[1766244032712,4.781e-05,2971.9,2971.1,8.42005238]
[1766244032713,4.781e-05,2971.9,2971.4,3.365]
[1766244032915,4.781e-05,2971.9,2971.1,0.00505238]
[1766244033115,4.781e-05,2971.9,2971.2,13.21]
[1766244033918,4.781e-05,2971.9,2971.1,0.00505238]
[1766244034213,4.781e-05,2971.9,2971.2,12.988]
[1766244049126,4.781e-05,2971.9,2971.1,0.00505238]
[1766244054734,4.781e-05,2971.9,2971.2,3.365]
[1766244058235,4.781e-05,2971.9,2971.3,11.198]
[1766244060542,4.781e-05,2971.9,2971.3,19.611]
[1766244061442,8.413,2973.4,2971.4,4.45010287]
[1766244061637,3.365,2973.1,2971.5,3.365]
[1766244062635,3.36937801,2973.1,2971.5,3.365]
[1766244062940,0.00437801,2973.1,2971.5,3.365]
[1766244063132,3.36937801,2973.1,2971.5,3.365]
[1766244063333,0.00437801,2973.1,2971.5,3.365]
[1766244063639,0.00437801,2973.1,2971.6,3.67672508]
[1766244063833,0.00437801,2973.1,2971.1,3.02379798]
[1766244063834,3.365,2973.0,2971.2,8.687]
[1766244064135,3.365,2973.0,2971.3,3.365]
[1766244065437,6.04919566,2973.0,2971.4,2.68419566]
[1766244068245,6.04905565,2973.0,2971.5,2.68405565]
[1766244068444,6.04905565,2973.0,2971.6,3.365]
[1766244071543,2.68405565,2974.8,2972.8,5.3681113]
[1766244071748,2.68405565,2974.2,2973.5,0.00505238]
[1766244071949,2.68405565,2974.2,2973.5,3.37005238]
[1766244072246,2.68405565,2974.5,2973.5,3.37005238]
[1766244072447,3.365,2974.4,2973.5,3.37411751]
[1766244072761,2.68405565,2974.2,2973.5,3.37411751]
[1766244073048,3.365,2974.1,2973.5,0.00911751]
[1766244073353,3.365,2974.1,2973.4,3.365]
[1766244073354,3.37002266,2974.1,2973.4,3.365]
[1766244074147,3.37002266,2974.1,2973.5,0.00504345]
[1766244076754,3.37002266,2974.1,2973.1,3.364]
[1766244077857,3.37002266,2974.1,2973.3,0.00504345]
[1766244079258,3.37002266,2974.1,2973.1,3.36709172]
[1766244079458,3.37002266,2974.1,2973.1,0.89699172]
[1766244080250,3.37002266,2974.1,2973.3,0.00504345]
[1766244081057,3.37002266,2974.1,2973.3,4.345e-05]
[1766244081262,3.37002266,2974.1,2973.1,0.89699172]
[1766244081263,3.37002266,2974.1,2973.1,0.75133517]
[1766244081462,3.37002266,2974.1,2972.8,3.364]
[1766244081664,3.37002266,2974.1,2972.7,3.364]
[1766244082263,3.37002266,2974.1,2973.1,0.00504345]
[1766244082564,0.1682,2974.0,2973.1,0.00899111]
[1766244082865,8.411,2973.9,2973.1,0.00899111]
[1766244083162,3.364,2973.8,2973.1,0.00899111]
[1766244083965,3.364,2973.8,2972.5,3.364]
[1766244084763,3.364,2973.8,2972.9,0.00504345]
[1766244085360,3.92473468,2973.7,2972.9,0.00504345]
[1766244092360,24.168,2973.6,2972.9,0.00504345]
[1766244092564,3.92473468,2973.7,2972.9,0.00504345]
[1766244092960,10.434,2973.6,2972.9,0.00504345]
[1766244093159,3.364,2973.5,2972.9,0.00504345]
[1766244094065,0.1682,2973.9,2972.9,0.00504345]
[1766244094264,5.577,2975.6,2972.9,0.00504345]
[1766244094265,3.364,2974.0,2972.9,3.36904345]
[1766244094660,3.364,2974.4,2972.9,5.48904345]
[1766244094971,2.266e-05,2974.1,2972.9,5.48904345]
[1766244095371,2.266e-05,2974.1,2973.2,2.68137308]
[1766244095571,2.266e-05,2974.1,2973.3,3.364]
[1766244097465,2.266e-05,2974.1,2973.4,2.68137308]
[1766244100074,2.266e-05,2974.1,2973.3,3.364]
[1766244104667,2.266e-05,2974.1,2973.2,3.363]
[1766244104875,2.68137308,2974.0,2973.2,3.363]
[1766244105683,2.68201996,2973.8,2973.2,3.363]
[1766244106578,3.363,2973.9,2973.2,3.363]
[1766244108183,2.68201996,2973.6,2973.2,3.363]
[1766244108380,2.68201996,2973.8,2973.2,3.363]
[1766244111286,2.266e-05,2974.1,2973.2,6.04501996]
[1766244111586,2.68201996,2973.9,2973.2,3.363]
[1766244113687,2.68201996,2973.7,2972.9,0.00504345]
[1766244113884,2.266e-05,2974.1,2973.0,3.363]
[1766244114083,3.363,2974.0,2973.0,3.363]
[1766244114284,2.68201996,2973.9,2973.0,3.363]
[1766244116788,3.363,2973.9,2973.0,3.363]
[1766244119789,6.04501996,2973.9,2973.0,3.363]
[1766244120892,2.68201996,2973.9,2973.0,3.363]
[1766244121091,2.266e-05,2974.1,2973.0,6.04501996]
[1766244121291,3.363,2973.9,2973.0,6.04501996]
[1766244121489,2.266e-05,2974.1,2973.0,6.04501996]
[1766244121790,3.363,2974.0,2973.0,6.04501996]
[1766244124393,3.36302266,2974.1,2973.2,2.68201996]
[1766244124594,3.36302266,2974.1,2973.3,3.363]
[1766244136901,2.68201996,2974.0,2973.3,3.363]
[1766244142006,2.68202874,2974.0,2973.3,3.363]
[1766244147409,6.04517723,2974.1,2973.3,3.363]
[1766244152813,3.36302266,2974.1,2973.3,3.363]
[1766244169233,2.266e-05,2974.1,2973.3,3.363]
[1766244169633,3.363,2974.0,2973.3,3.363]
[1766244177240,2.266e-05,2974.1,2973.3,3.363]
[1766244177441,3.363,2974.0,2973.3,3.363]
[1766244185845,2.266e-05,2974.1,2973.3,3.363]
[1766244186148,3.36302266,2974.1,2973.3,3.363]
[1766244186949,2.68176968,2973.8,2972.9,3.36804345]
[1766244187248,3.363,2973.7,2972.9,3.36804345]
[1766244187443,3.363,2973.6,2972.9,3.36804345]
[1766244189044,3.363,2973.6,2972.5,2.69884669]
[1766244189347,3.363,2973.6,2971.4,3.363]
[1766244189348,2.68176968,2972.7,2971.4,3.363]
[1766244189543,2.68176968,2972.3,2971.4,3.363]
[1766244189737,6.04476968,2972.3,2971.3,0.649]
[1766244190247,2.68176968,2972.0,2971.5,0.00504345]
[1766244192149,0.00504345,2972.1,2971.5,0.00504345]
[1766244192547,4.345e-05,2972.1,2971.5,0.00504345]
[1766244197445,2.68176968,2971.6,2969.5,2.68176968]
[1766244197743,2.68176968,2971.3,2969.8,2.68176968]
[1766244197943,3.364,2971.2,2969.8,2.68176968]
[1766244198345,3.364,2971.2,2970.2,0.00504345]
[1766244198545,3.364,2971.2,2970.3,3.364]
[1766244198745,2.68176968,2971.6,2970.3,3.364]
[1766244198940,3.364,2971.5,2970.3,3.364]
[1766244199554,3.364,2971.5,2970.2,0.00504345]
[1766244199854,2.68176968,2971.3,2970.2,0.00504345]
[1766244200454,3.364,2971.4,2970.2,0.00504345]
[1766244202152,2.68176968,2971.6,2970.2,0.00504345]
[1766244202350,3.365,2971.5,2970.2,0.00504345]
[1766244204151,2.68176968,2971.6,2970.2,0.00504345]
[1766244204356,3.365,2971.4,2970.2,0.00504345]
[1766244204854,3.365,2971.3,2970.2,0.00504345]
[1766244205049,2.68176968,2971.6,2970.2,0.00504345]
[1766244205361,3.365,2971.5,2970.2,0.00504345]
[1766244207352,2.68672109,2971.4,2970.2,0.00504345]
[1766244208647,3.366,2971.3,2970.2,0.00504345]
[1766244210367,0.593,2971.9,2970.9,2.68672109]
[1766244210556,2.68676454,2972.1,2971.0,3.366]
[1766244210753,2.68672109,2971.7,2971.0,3.3649]
[1766244211059,3.366,2971.6,2971.0,3.3649]
[1766244211352,6.05272109,2971.7,2971.0,3.3649]
[1766244213859,3.366,2971.7,2971.0,3.3649]
[1766244217661,2.68552669,2971.8,2971.0,3.3649]
[1766244217862,3.366,2971.7,2971.0,3.3649]
[1766244218957,2.68552669,2971.3,2970.8,3.366]
[1766244219159,2.68552669,2971.3,2970.8,3.2009]
[1766244221467,3.366,2971.4,2970.8,3.2009]
[1766244221664,3.366,2971.8,2971.0,2.68552669]
[1766244221868,3.366,2971.8,2970.8,5.88642669]
[1766244222369,6.05152669,2971.8,2970.8,5.88642669]
[1766244222870,6.05152669,2971.8,2970.8,3.2009]
[1766244223570,2.68552669,2971.4,2970.8,3.2009]
[1766244223975,2.68552669,2971.6,2970.8,3.2009]
[1766244224871,3.366,2971.5,2970.5,2.68552669]
[1766244225076,3.366,2971.5,2970.6,3.366]
[1766244225778,6.05152669,2971.5,2970.6,3.366]
[1766244226172,3.366,2971.5,2970.6,3.366]
[1766244228783,4.345e-05,2972.1,2970.6,6.05152669]
[1766244228979,2.68552669,2971.8,2970.6,6.05152669]
[1766244229180,3.366,2971.7,2970.6,6.05152669]
[1766244229382,3.366,2971.7,2970.8,2.68552669]
[1766244229582,3.366,2971.7,2970.9,3.366]
[1766244230484,3.36604345,2972.1,2971.2,2.68552669]
[1766244230788,4.345e-05,2972.1,2971.2,6.05152669]
[1766244230985,4.345e-05,2972.1,2971.4,2.68552669]
[1766244231189,4.345e-05,2972.1,2971.5,3.366]
[1766244235784,4.345e-05,2972.1,2971.8,2.68552669]
[1766244236090,4.345e-05,2972.1,2971.8,6.05152669]
[1766244237489,2.882,2972.9,2972.0,2.68552669]
[1766244237490,3.365,2972.9,2972.0,2.68552669]
[1766244237687,3.365,2972.9,2972.1,3.365]
[1766244238392,0.00504345,2972.8,2972.2,0.00504345]
[1766244239492,3.37004345,2972.8,2972.2,0.00504345]
[1766244241593,0.00504345,2972.8,2972.2,0.00504345]
[1766244246298,0.00504345,2972.8,2972.2,2.69057014]
[1766244247004,2.69057014,2972.8,2972.2,4.345e-05]
[1766244247199,3.37004345,2972.8,2972.2,4.345e-05]
[1766244248104,0.00504345,2972.8,2972.2,4.345e-05]
[1766244248303,3.37004345,2972.8,2972.2,4.345e-05]
[1766244249201,0.00504345,2972.8,2972.2,4.345e-05]
[1766244252002,2.68552669,2972.6,2972.2,4.345e-05]
[1766244252305,2.69057014,2972.8,2972.2,4.345e-05]
[1766244253607,0.00504345,2972.8,2972.2,4.345e-05]
[1766244256311,3.37004345,2972.8,2972.2,4.345e-05]
[1766244260215,0.00504345,2972.8,2972.2,4.345e-05]
[1766244260406,3.36904345,2972.8,2972.2,4.345e-05]
[1766244261106,0.00504345,2972.8,2972.2,4.345e-05]
[1766244261306,3.36904345,2972.8,2972.2,4.345e-05]
[1766244262106,3.36904345,2972.8,2972.1,3.3684619]
[1766244262107,5.53630556,2972.3,2969.8,0.16843]
[1766244262306,5.53630556,2972.3,2969.9,2.68400778]
[1766244262307,2.68400778,2971.1,2969.9,2.68400778]
[1766244262514,6.04800778,2971.3,2970.1,2.68400778]
[1766244262814,6.04800778,2971.3,2970.2,3.364]
[1766244263116,0.00504345,2971.0,2970.5,0.0033397]
[1766244263717,0.00504345,2971.0,2970.6,3.365]
[1766244265017,24.0562711,3009.5,2970.6,3.365]
[1766244265018,3.365,2971.6,2970.6,6.04900778]
[1766244266016,0.00504345,2971.4,2970.6,6.04900778]
[1766244267313,0.00504345,2971.4,2970.8,2.68400778]
[1766244267515,0.00504345,2971.4,2970.9,3.365]
[1766244272319,0.00504345,2971.4,2971.0,3.365]
[1766244283531,3.365,2971.9,2971.0,3.365]
[1766244284531,0.00504345,2971.7,2971.0,3.365]
[1766244294137,0.00504345,2971.7,2970.6,2.68564827]
[1766244294340,0.00504345,2971.7,2970.7,6.166]
[1766244302651,3.365,2971.9,2970.7,6.166]
[1766244302652,3.959,2972.5,2971.3,2.68564827]
[1766244302850,3.366,2972.5,2971.4,3.366]
[1766244303755,0.00504345,2972.2,2971.4,3.366]
[1766244304150,3.366,2972.5,2971.4,3.366]
[1766244304352,9.008,2972.8,2971.4,3.366]
[1766244304553,3.366,2972.5,2971.4,5.154]
[1766244305151,0.00504345,2972.2,2971.4,5.154]
[1766244307155,3.366,2972.6,2971.4,5.154]
[1766244308260,0.00504345,2972.3,2971.4,5.154]
[1766244314970,4.345e-05,2972.3,2971.4,5.154]
[1766244316362,4.345e-05,2972.3,2971.6,2.68564827]
[1766244316559,4.345e-05,2972.3,2971.7,3.365]
[1766244322059,4.345e-05,2972.3,2971.9,2.68564827]
[1766244322264,4.345e-05,2972.3,2972.0,3.365]
[1766244323063,0.00285365,2972.9,2972.0,3.365]
[1766244323969,0.00285365,2972.9,2972.2,0.00504345]
[1766244350497,3.36685365,2972.9,2972.2,0.00504345]
[1766244378606,2.68351391,2972.8,2972.2,0.00504345]
[1766244378814,2.68351391,2972.8,2972.2,3.17134345]
[1766244379112,2.68351391,2972.8,2972.2,2.57734345]
[1766244379909,2.68855736,2972.8,2972.2,2.5823869]
[1766244388024,2.68855736,2972.8,2972.2,4.345e-05]
[1766244388025,2.68351391,2972.6,2972.2,4.345e-05]
[1766244388220,6.04751391,2972.6,2972.2,4.345e-05]
[1766244388513,3.364,2972.6,2972.2,4.345e-05]
[1766244388718,6.04751391,2972.6,2972.2,4.345e-05]
[1766244389520,3.364,2972.6,2972.2,4.345e-05]
[1766244408243,2.68473122,2972.5,2971.5,3.365]
[1766244408536,3.364,2972.6,2971.5,3.365]
[1766244408739,8.413,2972.7,2971.5,3.365]
[1766244408938,0.00504345,2972.8,2971.5,3.365]
[1766244409134,3.365,2972.7,2971.9,0.00504345]
[1766244409735,0.00504345,2972.8,2971.9,0.00504345]
[1766244412242,0.00285365,2972.9,2972.1,2.68473122]
[1766244412439,0.00285365,2972.9,2972.2,3.365]
[1766244416550,0.00285365,2972.9,2972.4,2.68473122]
[1766244416747,0.00285365,2972.9,2972.4,0.00402668]
[1766244444780,0.00285365,2972.9,2972.4,3.36802668]
[1766244448577,0.00285365,2972.9,2972.4,0.00402668]
[1766244448875,0.00285365,2972.9,2972.4,3.36802668]
[1766244463402,6.0474157,2972.8,2972.4,0.00402668]
[1766244465201,3.364,2972.8,2972.4,0.00402668]
[1766244472810,6.04821069,2972.8,2972.4,0.00402668]
[1766244475912,0.00285365,2972.9,2972.4,0.00402668]
[1766244476112,3.365,2972.8,2972.4,0.00402668]
[1766244479512,0.00285365,2972.9,2972.4,0.00402668]
[1766244479712,3.36785365,2972.9,2972.4,0.00402668]
[1766244483716,0.00285365,2972.9,2972.4,0.00402668]
[1766244483917,3.36785365,2972.9,2972.4,0.00402668]
[1766244489619,0.00285365,2972.9,2972.4,0.00402668]
[1766244489820,3.36785365,2972.9,2972.4,0.00402668]
[1766244492318,0.00285365,2972.9,2972.4,0.00402668]
[1766244492522,3.365,2973.0,2972.5,2.68421069]
[1766244493214,0.593,2973.4,2972.5,2.68421069]
[1766244493421,3.365,2973.3,2972.5,2.68421069]
[1766244494717,3.365,2973.3,2972.4,3.36902668]
[1766244496318,0.59656841,2973.4,2973.2,2.68421069]
[1766244496518,3.364,2974.0,2973.3,2.68421069]
[1766244496719,3.364,2973.9,2973.4,0.00504345]
[1766244496919,3.364,2973.8,2973.4,0.00504345]
[1766244497612,3.36777053,2973.8,2973.4,0.00504345]
[1766244498221,6.05198122,2973.8,2972.9,3.364]
[1766244499225,0.00504345,2973.6,2973.1,0.00504345]
[1766244502327,3.36904345,2973.6,2973.1,0.00504345]
[1766244502731,0.00504345,2973.6,2973.1,0.00504345]
[1766244509538,0.00377053,2973.8,2973.1,0.00504345]
[1766244509836,3.36777053,2973.8,2973.1,0.00504345]
[1766244529345,0.00377053,2973.8,2973.1,0.00504345]
[1766244570966,0.00377053,2973.8,2973.2,3.363]
[1766244590696,3.363,2974.0,2973.2,3.363]
[1766244591195,2.68176116,2974.4,2973.2,6.04476116]
[1766244591399,3.363,2974.3,2973.2,6.04476116]
[1766244591894,3.36572358,2974.3,2973.2,6.04476116]
[1766244595000,3.363,2974.2,2973.4,2.68176116]
[1766244595201,3.363,2974.2,2973.5,3.363]
[1766244597705,0.00272358,2974.3,2973.5,3.363]